bitfinex/quotes_SOLUSD_20241113
["timestamp","ask_amount","ask_price","bid_price","bid_amount"]
[1731458113407,38.06297664,212.03,211.96,38.06297664]
[1731458113628,20.0,212.01,211.95,38.06297664]
[1731458114124,38.06297664,211.99,211.91,38.06297664]
[1731458114328,20.0,211.96,211.9,38.06297664]
[1731458114824,20.0,211.96,211.89,11.7985]
[1731458114825,20.0,211.96,211.91,38.06297664]
[1731458115031,20.0,211.97,211.91,38.06297664]
[1731458115429,20.0,211.97,211.9,38.06297664]
[1731458115430,62.78067664,211.97,211.9,38.06297664]
[1731458115818,24.7168,212.01,211.96,38.06297664]
[1731458116130,24.7168,212.01,211.97,38.06297664]
[1731458116321,20.0,212.01,211.96,38.06297664]
[1731458116524,20.0,212.01,211.97,38.06297664]
[1731458116915,20.0,211.99,211.95,38.06297664]
[1731458117225,23.776884,212.01,211.95,38.06297664]
[1731458117433,58.06297664,211.98,211.91,38.06297664]
[1731458117733,20.0,211.98,211.92,38.06297664]
[1731458118328,23.776884,212.0,211.95,38.06297664]
[1731458118628,20.0,211.99,211.95,38.06297664]
[1731458118830,20.0,211.99,211.93,38.06297664]
[1731458119033,23.776884,211.98,211.92,38.06297664]
[1731458119333,20.0,211.97,211.93,38.06297664]
[1731458119925,20.0,211.97,211.9,38.06297664]
[1731458120135,20.0,211.97,211.89,16.5179]
[1731458120136,20.0,211.97,211.91,38.06297664]
[1731458120427,24.7176,211.97,211.91,38.06297664]
[1731458121432,20.0,211.95,211.9,38.06297664]
[1731458122124,43.776884,211.96,211.91,38.06297664]
[1731458122332,20.0,211.98,211.92,38.06297664]
[1731458122529,6.2331,212.02,211.96,38.06297664]
[1731458122915,10.9497,212.02,211.96,23.47434887]
[1731458123233,23.47434887,211.97,211.9,23.47434887]
[1731458123434,23.47434887,211.99,211.92,23.47434887]
[1731458123634,10.9497,212.02,211.86,23.47434887]
[1731458123635,34.42404887,212.02,211.95,23.47434887]
[1731458123839,23.47434887,212.0,211.93,23.47434887]
[1731458124144,23.47434887,212.01,211.94,23.47434887]
[1731458124346,23.47434887,212.0,211.93,23.47434887]
[1731458124527,23.47434887,211.99,211.92,23.47434887]
[1731458124728,23.47434887,211.98,211.91,23.47434887]
[1731458125125,20.0,211.97,211.92,23.47434887]
[1731458125316,20.0,211.98,211.93,23.47434887]
[1731458125521,20.0,211.99,211.93,23.47434887]
[1731458125725,20.0,211.97,211.93,23.47434887]
[1731458126239,23.47434887,211.94,211.83,11.8018]
[1731458126446,20.0,211.93,211.88,23.47434887]
[1731458126747,20.0,211.93,211.83,11.8018]
[1731458126748,20.0,211.93,211.89,23.47434887]
[1731458126950,20.0,211.95,211.89,23.47434887]
[1731458127152,20.0,211.93,211.87,23.47434887]
[1731458127445,4.7187,211.92,211.86,23.47434887]
[1731458127833,23.776884,211.91,211.86,23.47434887]
[1731458128344,20.0,211.9,211.85,23.47434887]
[1731458129137,20.0,211.9,211.84,23.47434887]
[1731458129648,20.0,211.9,211.85,23.47434887]
[1731458130126,23.776884,211.89,211.81,4.721]
[1731458130332,23.47434887,211.97,211.8,0.4622359]
[1731458130333,20.0,211.86,211.8,23.93658477]
[1731458130533,43.47434887,211.86,211.8,0.4622359]
[1731458130745,20.0,211.86,211.81,23.47434887]
[1731458131046,20.0,211.87,211.83,23.47434887]
[1731458131234,20.0,211.87,211.8,16.9870359]
[1731458131436,20.0,211.87,211.84,23.47434887]
[1731458132321,28.496884,211.86,211.83,23.47434887]
[1731458132526,20.0,211.83,211.8,23.93658477]
[1731458132924,166.78903252,211.98,211.8,23.93658477]
[1731458132925,23.47434887,211.93,211.82,23.47434887]
[1731458133145,4.719,211.91,211.86,23.47434887]
[1731458133340,23.47434887,211.94,211.86,23.47434887]
[1731458133549,11.3791,211.94,211.87,23.47434887]
[1731458133850,23.776884,211.93,211.87,23.47434887]
[1731458134052,23.776884,211.93,211.8,16.9870359]
[1731458134053,23.47434887,211.92,211.85,23.47434887]
[1731458134261,23.47434887,211.89,211.82,23.47434887]
[1731458134431,4.7198,211.87,211.82,23.47434887]
[1731458134631,23.776884,211.86,211.81,23.47434887]
[1731458134831,23.776884,211.84,211.8,23.93658477]
[1731458135046,20.0,211.83,211.8,0.4622359]
[1731458135338,43.776884,211.81,211.8,0.4622359]
[1731458136148,50.029974,211.81,211.8,0.4622359]
[1731458136348,20.0,211.77,211.68,23.47434887]
[1731458136560,20.0,211.75,211.72,23.47434887]
[1731458136960,20.0,211.75,211.67,4.7242]
[1731458136961,20.0,211.75,211.73,23.47434887]
[1731458137742,20.0,211.75,211.72,23.47434887]
[1731458137943,20.0,211.75,211.74,23.47434887]
[1731458138160,15.3738,211.86,211.74,46.94869774]
[1731458138344,21.5516,211.93,211.85,23.47434887]
[1731458138558,4.7187,211.92,211.75,16.5288]
[1731458138865,4.7187,211.92,211.88,23.47434887]
[1731458139372,6.2057,211.93,211.9,23.47434887]
[1731458139550,10.9243,211.93,211.87,23.47434887]
[1731458139748,10.9243,211.93,211.75,63.6941347]
[1731458139749,34.39864887,211.93,211.86,23.47434887]
[1731458139947,10.9243,211.93,211.87,23.47434887]
[1731458140547,20.0,211.92,211.87,23.47434887]
[1731458140771,20.0,211.92,211.88,23.47434887]
[1731458140975,6.2057,211.93,211.88,23.47434887]
[1731458141161,10.9243,211.93,211.87,23.47434887]
[1731458141360,10.9243,211.93,211.88,23.47434887]
[1731458141758,23.47434887,211.92,211.85,23.47434887]
[1731458141967,10.9243,211.93,211.87,23.47434887]
[1731458142262,6.2057,211.93,211.9,23.47434887]
[1731458142455,4.7182,211.95,211.9,23.47434887]
[1731458142456,23.776884,211.94,211.9,23.47434887]
[1731458142658,28.620774,211.94,211.87,23.47434887]
[1731458142854,23.776884,211.92,211.86,23.47434887]
[1731458143061,47.25123287,211.92,211.85,23.47434887]
[1731458143257,23.776884,211.92,211.86,23.47434887]
[1731458143573,23.776884,211.93,211.87,23.47434887]
[1731458143870,20.0,211.92,211.88,23.47434887]
[1731458144059,20.0,211.96,211.89,23.47434887]
[1731458144259,20.0,211.94,211.88,23.47434887]
[1731458144477,20.0,211.92,211.86,23.47434887]
[1731458144658,23.776884,211.91,211.87,23.47434887]
[1731458144854,23.776884,211.91,211.85,4.7201]
[1731458144855,20.0,211.92,211.9,23.47434887]
[1731458145166,23.776884,211.94,211.9,23.47434887]
[1731458145364,20.0,211.93,211.86,23.47434887]
[1731458145676,23.776884,211.96,211.92,23.47434887]
[1731458145879,4.7177,211.97,211.92,23.47434887]
[1731458146248,23.47434887,211.93,211.85,35.27514887]
[1731458146754,0.12549,211.89,211.83,23.47434887]
[1731458147065,20.0,211.9,211.85,23.47434887]
[1731458147660,20.0,211.91,211.85,23.47434887]
[1731458147862,24.7187,211.92,211.86,23.47434887]
[1731458148064,20.0,211.9,211.86,23.47434887]
[1731458148359,23.776884,211.96,211.89,23.47434887]
[1731458148554,6.6169,211.98,211.93,23.47434887]
[1731458148778,20.0,211.97,211.92,23.47434887]
[1731458149076,20.0,211.97,211.9,23.47434887]
[1731458149077,0.12549,211.96,211.9,23.47434887]
[1731458149479,0.12549,211.96,211.89,23.47434887]
[1731458149664,23.776884,211.95,211.89,23.47434887]
[1731458150180,23.776884,211.95,211.79,23.68742722]
[1731458150181,23.776884,211.89,211.74,16.5296]
[1731458150356,23.1279,211.98,211.86,23.47434887]
[1731458150556,43.776884,211.97,211.78,0.07918583]
[1731458150777,20.12549,211.94,211.79,16.5257]
[1731458150977,23.776884,211.93,211.79,16.5257]
[1731458151190,23.776884,211.91,211.79,16.5257]
[1731458151391,4.7178,211.96,211.79,40.1339]
[1731458151566,34.80884887,211.98,211.91,23.47434887]
[1731458152078,11.3345,211.98,211.92,23.47434887]
[1731458152475,11.3345,211.98,211.91,23.47434887]
[1731458152985,20.0,211.9,211.84,23.47434887]
[1731458153189,43.47434887,211.88,211.8,39.99924887]
[1731458153393,47.25123287,211.87,211.8,39.99924887]
[1731458153599,20.0,211.86,211.78,4.7217]
[1731458153888,20.0,211.86,211.76,11.8057]
[1731458153889,23.776884,211.85,211.76,16.5278]
[1731458154098,47.25123287,211.85,211.78,23.47434887]
[1731458154271,23.776884,211.85,211.79,23.47434887]
[1731458154467,47.25123287,211.85,211.77,23.47434887]
[1731458154679,4.7207,211.83,211.77,28.19634887]
[1731458154978,20.0,211.84,211.8,23.47434887]
[1731458155564,20.0,211.84,211.81,23.47434887]
[1731458155788,20.0,211.84,211.8,23.47434887]
[1731458155975,20.0,211.84,211.79,23.47434887]
[1731458156182,20.0,211.84,211.81,23.47434887]
[1731458156373,6.5902,211.86,211.8,23.47434887]
[1731458156575,4.7191,211.91,211.84,23.47434887]
[1731458156875,6.0898,211.92,211.86,23.47434887]
[1731458157268,10.8086,211.92,211.86,23.47434887]
[1731458157472,34.28294887,211.92,211.85,23.47434887]
[1731458157764,10.8086,211.92,211.86,23.47434887]
[1731458158195,20.0,211.91,211.86,23.47434887]
[1731458158487,43.47434887,211.89,211.83,11.8019]
[1731458158689,43.47434887,211.89,211.82,23.47434887]
[1731458158863,43.47434887,211.89,211.78,11.8043]
[1731458158864,20.0,211.89,211.86,23.47434887]
[1731458159069,23.776884,211.91,211.86,23.47434887]
[1731458159381,23.276884,211.91,211.86,23.47434887]
[1731458159580,6.0898,211.92,211.87,23.47434887]
[1731458159783,23.47434887,211.96,211.88,23.47434887]
[1731458159974,23.47434887,211.94,211.86,23.47434887]
[1731458160175,0.12549,211.93,211.86,23.47434887]
[1731458160370,0.12549,211.93,211.87,23.47434887]
[1731458160571,0.12549,211.93,211.76,52.02472722]
[1731458160572,4.7187,211.92,211.86,23.47434887]
[1731458160800,0.12549,211.91,211.84,23.47434887]
[1731458161087,4.7187,211.92,211.85,23.47434887]
[1731458161288,6.3396,211.97,211.81,0.07918583]
[1731458161492,6.3396,211.97,211.83,0.07918583]
[1731458161786,0.12549,211.96,211.83,0.07918583]
[1731458162008,6.3396,211.97,211.83,0.07918583]
[1731458162169,6.3396,212.04,211.88,0.07918583]
[1731458162368,20.2947,212.05,212.03,23.47434887]
[1731458162369,15.5789,212.05,212.03,23.47434887]
[1731458162571,4.7153,212.08,212.03,23.47434887]
[1731458163091,0.32549,212.03,211.85,23.47434887]
[1731458163389,0.32549,212.03,211.83,4.7207]
[1731458163390,23.47434887,211.91,211.84,11.8008]
[1731458163588,23.47434887,211.87,211.79,23.47434887]
[1731458163783,39.111474,211.88,211.79,11.804]
[1731458163967,39.111474,211.88,211.8,23.47434887]
[1731458163968,23.776884,211.86,211.8,23.47434887]
[1731458164174,20.0,211.85,211.79,23.47434887]
[1731458164570,20.0,211.85,211.82,23.47434887]
[1731458165175,20.0,211.85,211.81,23.47434887]
[1731458165386,20.0,211.85,211.79,23.47434887]
[1731458165690,24.7204,211.85,211.79,23.47434887]
[1731458165898,24.7204,211.85,211.78,23.47434887]
[1731458166098,24.7204,211.85,211.79,23.47434887]
[1731458166305,24.7204,211.85,211.78,23.47434887]
[1731458166882,24.7204,211.85,211.79,38.20808892]
[1731458167108,20.0,211.85,211.8,38.20808892]
[1731458167406,20.0,211.85,211.7,0.07922722]
[1731458167407,38.20808892,211.82,211.74,38.20808892]
[1731458167700,20.0,211.81,211.74,38.20808892]
[1731458168012,23.776884,211.87,211.8,38.20808892]
[1731458168300,23.776884,211.87,211.83,38.20808892]
[1731458168504,28.496784,211.87,211.72,16.5309]
[1731458168809,38.20808892,211.83,211.73,11.8074]
[1731458168983,23.776884,211.85,211.73,11.8074]
[1731458169400,20.0,211.84,211.73,11.8074]
[1731458169786,20.0,211.84,211.8,38.20808892]
[1731458169982,20.0,211.87,211.81,38.20808892]
[1731458170404,38.20808892,211.84,211.77,38.20808892]
[1731458170710,4.7214,211.8,211.73,38.20808892]
[1731458170887,58.20808892,211.78,211.69,38.20808892]
[1731458171091,58.20808892,211.78,211.71,38.20808892]
[1731458171284,58.20808892,211.78,211.69,38.20808892]
[1731458171496,23.776884,211.75,211.69,38.20808892]
[1731458171701,20.0,211.74,211.67,38.20808892]
[1731458171898,20.0,211.74,211.69,38.20808892]
[1731458172509,0.12549,211.73,211.69,38.20808892]
[1731458172802,23.776884,211.73,211.69,38.20808892]
[1731458173117,20.0,211.7,211.65,38.33357892]
[1731458174205,20.0,211.68,211.65,38.33357892]
[1731458174584,20.0,211.68,211.65,0.12549]
[1731458174782,81.98497292,211.66,211.65,0.12549]
[1731458175187,81.98497292,211.66,211.44,16.5527]
[1731458175188,20.22549,211.62,211.44,16.5527]
[1731458175388,20.0,211.51,211.45,38.20808892]
[1731458175597,20.0,211.47,211.45,38.20808892]
[1731458175801,38.20808892,211.54,211.45,38.20808892]
[1731458176017,23.776884,211.51,211.47,38.20808892]
[1731458176202,23.776884,211.51,211.41,16.5554]
[1731458176203,20.12549,211.5,211.45,38.20808892]
[1731458176387,20.0,211.48,211.43,38.20808892]
[1731458176696,20.0,211.48,211.44,38.20808892]
[1731458177098,23.902374,211.47,211.44,38.20808892]
[1731458177297,23.902374,211.47,211.37,5.1931359]
[1731458177298,20.0,211.46,211.43,38.20808892]
[1731458177693,20.0,211.46,211.42,38.20808892]
[1731458177894,4.85439,211.47,211.43,38.20808892]
[1731458178201,23.776884,211.46,211.41,38.20808892]
[1731458178514,20.0,211.45,211.41,38.20808892]
[1731458178809,20.0,211.45,211.43,38.20808892]
[1731458179008,4.7284,211.49,211.39,38.20808892]
[1731458179009,0.12549,211.46,211.39,38.20808892]
[1731458179307,43.902374,211.42,211.37,0.4622359]
[1731458180006,43.902374,211.4,211.37,0.4622359]
[1731458180909,43.902374,211.38,211.37,0.4622359]
[1731458182416,0.12549,211.36,211.33,0.12549]
[1731458182720,20.0,211.28,211.25,38.33357892]
[1731458182902,23.776884,211.35,211.27,38.20808892]
[1731458183094,6.2393,211.38,211.33,38.20808892]
[1731458183603,0.12549,211.33,211.25,0.12549]
[1731458184214,38.20808892,211.3,211.25,0.12549]
[1731458184394,20.0,211.29,211.25,0.12549]
[1731458184998,20.0,211.3,211.25,0.12549]
[1731458185215,23.776884,211.29,211.25,0.12549]
[1731458186308,23.776884,211.27,211.25,0.12549]
[1731458186504,82.11046292,211.26,211.15,4.7358]
[1731458186715,82.11046292,211.26,210.88,259.4]
[1731458186716,43.129008,211.17,211.06,38.20808892]
[1731458186923,43.129008,211.17,211.1,38.20808892]
[1731458187108,19.226634,211.17,211.12,38.20808892]
[1731458187419,23.902374,211.17,211.1,42.94508892]
[1731458188002,23.902374,211.17,211.13,38.20808892]
[1731458188405,38.20808892,211.22,211.13,38.20808892]
[1731458188727,23.776884,211.25,211.21,38.20808892]
[1731458189015,23.776884,211.25,211.16,17.0370359]
[1731458189016,4.7321,211.32,211.24,38.20808892]
[1731458189239,38.20808892,211.35,211.28,38.20808892]
[1731458189515,4.7305,211.39,211.17,40.2519]
[1731458189699,38.20808892,211.31,211.23,38.20808892]
[1731458189901,38.20808892,211.29,211.21,38.20808892]
[1731458190113,0.12549,211.28,211.23,38.20808892]
[1731458190313,38.20808892,211.33,211.26,38.20808892]
[1731458190617,0.12549,211.28,211.22,38.20808892]
[1731458190823,23.902374,211.28,211.2,38.20808892]
[1731458191125,23.776884,211.26,211.21,38.20808892]
[1731458191305,23.776884,211.29,211.23,38.20808892]
[1731458191509,23.776884,211.29,211.21,38.20808892]
[1731458191704,0.12549,211.28,211.21,38.20808892]
[1731458191917,20.12549,211.26,211.21,38.20808892]
[1731458192609,20.12549,211.26,211.21,42.94248892]
[1731458193419,20.0,211.26,211.24,38.20808892]
[1731458193619,20.0,211.32,211.25,38.20808892]
[1731458193824,38.20808892,211.35,211.27,38.20808892]
[1731458194008,38.20808892,211.36,211.28,38.20808892]
[1731458194200,38.20808892,211.37,211.3,38.20808892]
[1731458194413,38.20808892,211.33,211.25,38.20808892]
[1731458194730,0.12549,211.3,211.23,42.94198892]
[1731458194907,38.20808892,211.34,211.26,38.20808892]
[1731458195108,0.12549,211.35,211.29,38.20808892]
[1731458195518,6.2839,211.4,211.23,16.5693]
[1731458195519,38.20808892,211.37,211.3,38.20808892]
[1731458195714,38.20808892,211.38,211.3,38.20808892]
[1731458196000,38.20808892,211.38,211.23,16.5693]
[1731458196001,0.12549,211.35,211.29,38.20808892]
[1731458196207,38.20808892,211.34,211.27,38.20808892]
[1731458196413,38.20808892,211.38,211.31,38.20808892]
[1731458196626,38.20808892,211.43,211.36,38.20808892]
[1731458196812,18.915257,211.48,211.3,0.07918583]
[1731458197012,18.915257,211.48,211.42,0.07918583]
[1731458197213,0.8124559,211.6,211.42,0.07918583]
[1731458197417,4.7252,211.63,211.44,0.07922722]
[1731458197623,4.7252,211.63,211.42,0.07918583]
[1731458197624,0.1,211.61,211.38,0.07918583]
[1731458197821,4.7252,211.63,211.44,0.07918583]
[1731458198024,38.20808892,211.6,211.53,38.20808892]
[1731458198206,38.20808892,211.62,211.53,38.20808892]
[1731458198403,38.20808892,211.66,211.57,38.20808892]
[1731458198627,38.20808892,211.68,211.61,38.20808892]
[1731458198815,38.20808892,211.7,211.61,38.20808892]
[1731458199418,38.20808892,211.7,211.63,38.20808892]
[1731458199745,38.20808892,211.74,211.67,38.20808892]
[1731458199914,38.20808892,211.76,211.67,38.20808892]
[1731458200112,38.20808892,211.76,211.7,4.7236]
[1731458200429,38.20808892,211.8,211.71,38.20808892]
[1731458200741,0.12549,211.75,211.7,16.5327]
[1731458200912,38.20808892,211.76,211.7,11.8091]
[1731458201238,38.20808892,211.82,211.75,38.20808892]
[1731458201434,18.883493,211.83,211.8,38.20808892]
[1731458201608,18.883493,211.83,211.74,0.07918583]
[1731458201930,0.4622359,211.9,211.74,0.07922722]
[1731458202112,0.12549,211.89,211.73,16.5303]
[1731458202309,0.4622359,211.9,211.73,16.5303]
[1731458202517,0.4622359,211.9,211.82,38.20808892]
[1731458202518,38.67032482,211.9,211.82,38.20808892]
[1731458202734,0.4622359,211.9,211.86,38.20808892]
[1731458203237,0.4622359,211.9,211.89,38.20808892]
[1731458204123,0.4622359,211.9,211.81,0.07922722]
[1731458204124,0.4622359,211.9,211.87,38.20808892]
[1731458204319,0.4622359,211.9,211.89,38.20808892]
[1731458205117,0.4622359,212.12,211.91,0.15841305]
[1731458205433,38.20808892,212.07,211.99,38.20808892]
[1731458205734,0.4622359,212.12,211.96,0.07918583]
[1731458205913,0.4622359,212.12,211.98,0.07918583]
[1731458206318,0.4622359,212.12,211.99,16.5102]
[1731458206536,0.4622359,212.12,212.02,0.07918583]
[1731458206828,0.4622359,212.12,212.11,38.20808892]
[1731458208131,0.12549,212.11,212.07,38.20808892]
[1731458208312,0.12549,212.11,212.05,38.20808892]
[1731458208516,0.12549,212.11,212.07,38.20808892]
[1731458208827,23.902374,212.11,212.05,38.20808892]
[1731458209028,23.776884,212.09,212.07,38.20808892]
[1731458209232,0.12549,212.09,212.07,38.20808892]
[1731458209437,23.902374,212.09,212.05,38.20808892]
[1731458209617,20.0,212.1,212.0,16.5093]
[1731458209618,20.0,212.1,212.07,38.20808892]
[1731458209814,0.4622359,212.12,212.09,38.20808892]
[1731458210117,0.4622359,212.12,212.11,38.20808892]
[1731458212652,0.4622359,212.12,212.09,38.20808892]
[1731458213153,0.4622359,212.12,212.11,38.20808892]
[1731458214353,38.20808892,212.31,212.16,0.07918583]
[1731458214572,38.20808892,212.31,212.23,38.20808892]
[1731458214759,0.12549,212.3,212.23,38.20808892]
[1731458214950,38.20808892,212.31,212.23,38.20808892]
[1731458215261,53.75212482,212.33,212.25,38.20808892]
[1731458215551,38.20808892,212.29,212.21,38.20808892]
[1731458215755,38.20808892,212.31,212.24,38.20808892]
[1731458215937,5.1718359,212.33,212.26,38.20808892]
[1731458216138,0.12549,212.32,212.26,38.20808892]
[1731458216340,5.1718359,212.33,212.26,38.20808892]
[1731458216961,0.4622359,212.33,212.28,38.20808892]
[1731458217257,0.4622359,212.33,212.3,38.20808892]
[1731458217437,0.4622359,212.33,212.32,38.20808892]
[1731458218251,0.4622359,212.33,212.3,38.20808892]
[1731458218461,0.4622359,212.33,212.28,38.20808892]
[1731458218659,0.4622359,212.33,212.25,4.7113]
[1731458218660,0.4622359,212.33,212.29,38.20808892]
[1731458218846,24.2391199,212.33,212.29,38.20808892]
[1731458219052,24.2391199,212.33,212.27,38.20808892]
[1731458219252,0.4622359,212.33,212.29,38.20808892]
[1731458219761,24.2391199,212.33,212.29,38.20808892]
[1731458220463,20.0,212.32,212.27,38.20808892]
[1731458220648,23.776884,212.29,212.23,38.20808892]
[1731458220846,23.902374,212.25,212.17,38.20808892]
[1731458221162,23.776884,212.19,212.13,38.20808892]
[1731458221537,23.776884,212.17,212.13,38.20808892]
[1731458221754,23.776884,212.17,212.11,38.20808892]
[1731458222352,38.20808892,212.12,212.04,38.20808892]
[1731458222663,0.12549,212.16,212.02,4.7164]
[1731458222664,23.776884,212.09,212.02,38.20808892]
[1731458222870,38.20808892,212.08,212.0,38.20808892]
[1731458223158,23.776884,212.02,211.98,38.20808892]
[1731458223366,20.0,212.08,212.01,38.20808892]
[1731458223670,38.20808892,212.08,212.0,38.20808892]
[1731458223846,23.776884,212.04,211.98,38.20808892]
[1731458224163,23.902374,212.02,211.95,38.20808892]
[1731458224464,23.902374,212.02,211.86,38.20808892]
[1731458224465,20.0,211.97,211.91,38.20808892]
[1731458224643,20.0,211.97,211.93,38.20808892]
[1731458224845,20.0,211.97,211.9,38.20808892]
[1731458224846,23.776884,211.96,211.9,38.20808892]
[1731458225055,23.776884,211.96,211.87,16.5192]
[1731458225341,23.776884,211.96,211.93,38.20808892]
[1731458225558,20.0,211.97,211.87,16.67761305]
[1731458225764,20.0,212.01,211.87,16.67761305]
[1731458225967,20.0,211.97,211.87,16.5192]
[1731458226171,23.902374,211.96,211.87,11.7994]
[1731458226370,20.0,211.95,211.87,11.7994]
[1731458226665,23.776884,212.0,211.92,38.20808892]
[1731458226666,23.776884,211.96,211.92,38.20808892]
[1731458226858,20.0,211.95,211.9,38.20808892]
[1731458227060,4.7171,212.0,211.93,38.20808892]
[1731458227257,23.776884,211.99,211.94,38.20808892]
[1731458227455,23.776884,211.95,211.9,38.20808892]
[1731458227660,20.0,211.92,211.9,38.20808892]
[1731458227864,23.776884,211.91,211.88,38.20808892]
[1731458228053,23.776884,211.89,211.84,38.20808892]
[1731458228253,23.776884,211.89,211.86,38.20808892]
[1731458228566,23.776884,211.89,211.84,38.20808892]
[1731458228949,23.776884,211.89,211.86,38.20808892]
[1731458229351,23.776884,211.89,211.84,38.20808892]
[1731458229857,23.776884,211.89,211.86,38.20808892]
[1731458230266,20.0,212.01,211.89,16.5179]
[1731458230471,16.4237,212.06,212.0,38.20808892]
[1731458230652,6.0013,212.07,212.02,38.20808892]
[1731458230857,6.0013,212.07,211.9,0.20471722]
[1731458230858,48.92488892,212.07,212.0,38.20808892]
[1731458231160,0.12549,212.06,212.0,38.20808892]
[1731458231473,0.12549,212.06,211.89,16.5179]
[1731458231474,0.12549,212.06,211.98,38.20808892]
[1731458231783,38.20808892,212.05,211.98,38.20808892]
[1731458232077,48.92488892,212.07,212.0,38.20808892]
[1731458232271,48.92488892,212.07,211.89,16.5179]
[1731458232272,38.20808892,212.11,212.04,38.20808892]
[1731458232574,4.7136,212.15,212.04,38.20808892]
[1731458232781,38.20808892,212.13,212.06,38.20808892]
[1731458233272,0.12549,212.1,212.02,49.99918892]
[1731458233474,0.12549,212.1,212.04,38.20808892]
[1731458233775,23.776884,212.1,212.04,38.20808892]
[1731458233981,38.20808892,212.07,211.98,38.20808892]
[1731458234173,23.776884,212.04,211.97,11.794]
[1731458234967,0.12549,212.06,211.83,23.6036]
[1731458234968,23.776884,212.02,211.94,38.20808892]
[1731458235174,23.776884,211.97,211.92,38.20808892]
[1731458235357,23.776884,212.0,211.94,38.20808892]
[1731458235563,23.776884,212.0,211.99,38.20808892]
[1731458235959,23.776884,212.0,211.97,38.20808892]
[1731458236280,23.776884,212.0,211.98,38.20808892]
[1731458236577,43.776884,212.05,211.98,38.20808892]
[1731458236888,43.776884,212.05,212.0,38.20808892]
[1731458237056,42.92338892,212.08,212.0,38.20808892]
[1731458237057,23.776884,212.07,212.0,38.20808892]
[1731458237257,23.776884,212.05,212.0,38.20808892]
[1731458237458,23.776884,212.05,212.02,38.20808892]
[1731458237679,23.902374,212.07,212.02,38.20808892]
[1731458238177,38.20808892,212.12,212.04,38.20808892]
[1731458238773,0.12549,212.11,212.04,38.20808892]
[1731458238975,42.92238892,212.12,212.04,38.20808892]
[1731458239485,34.2091,212.16,212.07,38.20808892]
[1731458239486,42.92188892,212.15,212.07,38.20808892]
[1731458239688,4.714,212.14,212.09,38.20808892]
[1731458239981,42.91988892,212.23,212.13,38.20808892]
[1731458240153,4.7114,212.26,212.2,38.20808892]
[1731458240364,42.91888892,212.28,212.2,38.20808892]
[1731458240677,0.12549,212.25,212.18,38.20808892]
[1731458240855,38.20808892,212.32,212.24,38.20808892]
[1731458241257,0.4622359,212.33,212.22,38.20808892]
[1731458241258,38.20808892,212.3,212.22,38.20808892]
[1731458241453,38.20808892,212.28,212.2,38.20808892]
[1731458241863,38.20808892,212.24,212.17,11.7827]
[1731458242264,20.0,212.25,212.2,38.20808892]
[1731458242584,38.67032482,212.33,212.24,38.20808892]
[1731458242878,38.67032482,212.33,212.19,38.20808892]
[1731458242879,43.38012482,212.33,212.25,38.20808892]
[1731458243382,38.20808892,212.32,212.25,38.20808892]
[1731458243558,0.4622359,212.33,212.25,38.20808892]
[1731458243758,0.4622359,212.33,212.21,16.4924]
[1731458243759,0.4622359,212.33,212.29,38.20808892]
[1731458244483,0.4622359,212.33,212.32,38.20808892]
[1731458244853,0.4622359,212.33,212.32,42.91788892]
[1731458245076,0.4622359,212.33,212.32,63.12256475]
[1731458245861,0.05959466,212.33,212.32,62.99707475]
[1731458246177,0.05959466,212.33,212.32,63.12256475]
[1731458247681,0.05959466,212.33,212.32,63.04337892]
[1731458248064,0.05959466,212.33,212.32,62.99707475]
[1731458248279,0.05959466,212.33,212.32,63.12256475]
[1731458248681,44.38668892,212.52,212.38,0.07918583]
[1731458248864,38.20808892,212.52,212.44,38.20808892]
[1731458249182,42.91368892,212.52,212.44,38.20808892]
[1731458249386,38.20808892,212.52,212.46,38.20808892]
[1731458249562,43.37532482,212.54,212.46,38.20808892]
[1731458249881,38.20808892,212.48,212.41,49.97738892]
[1731458250077,38.20808892,212.48,212.41,54.68518892]
[1731458250280,5.1672359,212.54,212.41,54.68518892]
[1731458250487,38.20808892,212.5,212.41,54.68518892]
[1731458250661,23.776884,212.49,212.41,54.68518892]
[1731458250867,23.776884,212.49,212.43,38.20808892]
[1731458251184,0.4622359,212.54,212.47,38.20808892]
[1731458251374,0.4622359,212.54,212.49,38.20808892]
[1731458251684,0.4622359,212.54,212.41,50.13580197]
[1731458251685,0.4622359,212.54,212.47,38.20808892]